[Event "Early-Titled-Tuesday-Blitz-January-23-2024"]
[Site "Chess.com"]
[Date "2024.01.23"]
[Round "10"]
[White "platy3"]
[Black "Rodalquilar"]
[Result "1-0"]
[WhiteElo "2875"]
[BlackElo "2741"]
[TimeControl "180+1"]
[EndTime "9:56:40 PST"]
[Termination "platy3 won on time"]

1. e4 {[%clk 0:03:00.9]} 1... d5 {[%clk 0:02:59.5]} 2. exd5 {[%clk 0:02:56.5]}
2... Qxd5 {[%clk 0:03:00.4]} 3. Nc3 {[%clk 0:02:57.1]} 3... Qa5 {[%clk
0:03:00.6]} 4. d4 {[%clk 0:02:57]} 4... Nf6 {[%clk 0:03:01.1]} 5. Nf3 {[%clk
0:02:57.6]} 5... Bf5 {[%clk 0:03:01.4]} 6. Bc4 {[%clk 0:02:50.3]} 6... e6 {[%clk
0:03:01.6]} 7. Ne5 {[%clk 0:02:50.2]} 7... Nbd7 {[%clk 0:02:55]} 8. Nxd7 {[%clk
0:02:47.2]} 8... Nxd7 {[%clk 0:02:55.2]} 9. O-O {[%clk 0:02:45.9]} 9... c6
{[%clk 0:02:51.6]} 10. Qe2 {[%clk 0:02:40.4]} 10... Bd6 {[%clk 0:02:44.3]} 11.
Ne4 {[%clk 0:02:36.1]} 11... Bxe4 {[%clk 0:02:37.3]} 12. Qxe4 {[%clk 0:02:35.7]}
12... Nf6 {[%clk 0:02:22.4]} 13. Qf3 {[%clk 0:02:35.4]} 13... Qh5 {[%clk
0:02:17]} 14. Qxh5 {[%clk 0:02:33.3]} 14... Nxh5 {[%clk 0:02:17.9]} 15. g3
{[%clk 0:02:32.3]} 15... Nf6 {[%clk 0:02:17]} 16. Be2 {[%clk 0:02:29.1]} 16...
O-O-O {[%clk 0:02:11.9]} 17. Bf3 {[%clk 0:02:27.8]} 17... h5 {[%clk 0:02:03.3]}
18. a4 {[%clk 0:02:26]} 18... h4 {[%clk 0:02:02.5]} 19. c3 {[%clk 0:02:25.3]}
19... Nd5 {[%clk 0:01:43.4]} 20. Bd2 {[%clk 0:02:19.6]} 20... Bc7 {[%clk
0:01:24.6]} 21. b4 {[%clk 0:02:18.4]} 21... e5 {[%clk 0:01:16.5]} 22. b5 {[%clk
0:02:14.8]} 22... exd4 {[%clk 0:01:14.4]} 23. cxd4 {[%clk 0:02:14.1]} 23... cxb5
{[%clk 0:01:06.8]} 24. Rfc1 {[%clk 0:01:56.3]} 24... hxg3 {[%clk 0:00:55.1]} 25.
hxg3 {[%clk 0:01:52.9]} 25... Kb8 {[%clk 0:00:49.3]} 26. Rc5 {[%clk 0:01:52.3]}
26... Ne7 {[%clk 0:00:21.7]} 27. Rxb5 {[%clk 0:01:49.5]} 27... b6 {[%clk
0:00:22.1]} 28. a5 {[%clk 0:01:48.3]} 28... Nc8 {[%clk 0:00:16.7]} 29. axb6
{[%clk 0:01:44.5]} 29... Nxb6 {[%clk 0:00:14]} 30. Ba5 {[%clk 0:01:26.8]} 30...
Rh6 {[%clk 0:00:10.6]} 31. Bc3 {[%clk 0:01:11]} 31... Rf6 {[%clk 0:00:09.9]} 32.
Kg2 {[%clk 0:01:10.4]} 32... Rfd6 {[%clk 0:00:09.5]} 33. Rba5 {[%clk 0:01:06.2]}
33... Nc8 {[%clk 0:00:08.6]} 34. Rf5 {[%clk 0:01:02.7]} 34... f6 {[%clk
0:00:08.2]} 35. Rh5 {[%clk 0:00:43.2]} 35... Bb6 {[%clk 0:00:08.1]} 36. d5
{[%clk 0:00:43.9]} 36... Ne7 {[%clk 0:00:07.5]} 37. Bb4 {[%clk 0:00:41.9]} 37...
R6d7 {[%clk 0:00:05.8]} 38. d6 {[%clk 0:00:42.1]} 38... Nc8 {[%clk 0:00:03.7]}
39. Bc6 {[%clk 0:00:42.1]} 39... Rxd6 {[%clk 0:00:03.3]} 40. Bxd6+ {[%clk
0:00:42.3]} 40... Nxd6 {[%clk 0:00:04.2]} 41. Rh7 {[%clk 0:00:38.4]} 41... Nf5
{[%clk 0:00:03.9]} 42. Be4 {[%clk 0:00:38.7]} 42... Nd6 {[%clk 0:00:04.1]} 43.
Bf3 {[%clk 0:00:34.7]} 43... Rd7 {[%clk 0:00:04.4]} 44. Rd1 {[%clk 0:00:32.6]}
44... Kc7 {[%clk 0:00:04.9]} 45. Rc1+ {[%clk 0:00:28.2]} 45... Kd8 {[%clk
0:00:03.5]} 46. Rh8+ {[%clk 0:00:28.1]} 46... Ke7 {[%clk 0:00:04.1]} 47. Re1+
{[%clk 0:00:27.9]} 47... Kf7 {[%clk 0:00:03]} 48. Bh5+ {[%clk 0:00:28.1]} 48...
g6 {[%clk 0:00:03.5]} 49. Rh7+ {[%clk 0:00:28.2]} 1-0

[Event "Early-Titled-Tuesday-Blitz-January-23-2024"]
[Site "Chess.com"]
[Date "2024.01.23"]
[Round "10"]
[White "LileKoridze"]
[Black "Licancabur"]
[Result "0-1"]
[WhiteElo "2307"]
[BlackElo "2462"]
[TimeControl "180+1"]
[EndTime "9:56:40 PST"]
[Termination "Licancabur won on time"]

1. d4 {[%clk 0:03:00.9]} 1... d5 {[%clk 0:02:58.9]} 2. c4 {[%clk 0:03:00]} 2...
dxc4 {[%clk 0:02:58.8]} 3. e3 {[%clk 0:02:59.8]} 3... e5 {[%clk 0:02:58.1]} 4.
Bxc4 {[%clk 0:02:59.5]} 4... exd4 {[%clk 0:02:57.9]} 5. exd4 {[%clk 0:03:00.4]}
5... Bd6 {[%clk 0:02:58]} 6. Nf3 {[%clk 0:02:59.9]} 6... Nf6 {[%clk 0:02:58.2]}
7. O-O {[%clk 0:02:59.3]} 7... O-O {[%clk 0:02:57.5]} 8. h3 {[%clk 0:02:59.9]}
8... h6 {[%clk 0:02:49.5]} 9. Nc3 {[%clk 0:02:53.6]} 9... Nc6 {[%clk 0:02:48]}
10. a3 {[%clk 0:02:48.2]} 10... Bf5 {[%clk 0:02:42.5]} 11. Bd3 {[%clk
0:02:47.5]} 11... Qd7 {[%clk 0:02:30.7]} 12. Be3 {[%clk 0:02:33]} 12... Rad8
{[%clk 0:02:28.4]} 13. Qc2 {[%clk 0:02:32.1]} 13... Bxh3 {[%clk 0:02:07.6]} 14.
gxh3 {[%clk 0:01:54]} 14... Qxh3 {[%clk 0:02:07.1]} 15. Qd1 {[%clk 0:00:51.8]}
15... Ng4 {[%clk 0:01:50.6]} 16. Re1 {[%clk 0:00:51.8]} 16... Rfe8 {[%clk
0:01:32]} 17. Bf1 {[%clk 0:00:45.1]} 17... Bh2+ {[%clk 0:01:20.8]} 18. Kh1
{[%clk 0:00:44.4]} 18... Qh5 {[%clk 0:01:19.5]} 19. Bg2 {[%clk 0:00:38.7]} 19...
Rxe3 {[%clk 0:01:12.1]} 20. Qd2 {[%clk 0:00:11.9]} 20... Rxe1+ {[%clk
0:01:06.5]} 21. Qxe1 {[%clk 0:00:11.3]} 21... Bg3+ {[%clk 0:01:02.6]} 22. Kg1
{[%clk 0:00:11.5]} 22... Bxf2+ {[%clk 0:01:02.7]} 23. Qxf2 {[%clk 0:00:11.3]}
23... Nxf2 {[%clk 0:01:02.9]} 24. Kxf2 {[%clk 0:00:12.2]} 24... Nxd4 {[%clk
0:01:00.3]} 25. Rd1 {[%clk 0:00:11]} 25... c5 {[%clk 0:00:55.4]} 26. Ne4 {[%clk
0:00:09.5]} 26... Qf5 {[%clk 0:00:48.4]} 27. Ng3 {[%clk 0:00:06.4]} 27... Qf4
{[%clk 0:00:41.7]} 28. Ne2 {[%clk 0:00:04.6]} 28... Qf6 {[%clk 0:00:33.9]} 29.
Nxd4 {[%clk 0:00:04.1]} 29... cxd4 {[%clk 0:00:34.1]} 30. Rd3 {[%clk 0:00:04.2]}
30... g5 {[%clk 0:00:31.5]} 31. Kg1 {[%clk 0:00:04.3]} 31... b5 {[%clk
0:00:28.2]} 32. Nd2 {[%clk 0:00:04.2]} 32... Re8 {[%clk 0:00:23.5]} 33. Ne4
{[%clk 0:00:03.8]} 33... Qf4 {[%clk 0:00:21.8]} 34. Nf2 {[%clk 0:00:02.1]} 34...
Re3 {[%clk 0:00:20.7]} 35. Rd1 {[%clk 0:00:01.9]} 35... Rg3 {[%clk 0:00:18.1]}
36. Re1 {[%clk 0:00:01.8]} 36... Kg7 {[%clk 0:00:13.8]} 37. Kf1 {[%clk
0:00:01.2]} 37... Re3 {[%clk 0:00:12.9]} 38. Rd1 {[%clk 0:00:01.5]} 38... g4
{[%clk 0:00:12.8]} 39. Kg1 {[%clk 0:00:01.6]} 39... Re2 {[%clk 0:00:12.8]} 40.
Nd3 {[%clk 0:00:01.8]} 40... Qg3 {[%clk 0:00:11.4]} 41. Nf4 {[%clk 0:00:01.1]}
41... Qxf4 {[%clk 0:00:11]} 0-1

[Event "Early-Titled-Tuesday-Blitz-January-23-2024"]
[Site "Chess.com"]
[Date "2024.01.23"]
[Round "10"]
[White "AndresDelgado77"]
[Black "NowInChess"]
[Result "1-0"]
[WhiteElo "2386"]
[BlackElo "2281"]
[TimeControl "180+1"]
[EndTime "9:56:40 PST"]
[Termination "AndresDelgado77 won on time"]

1. e4 {[%clk 0:03:00.2]} 1... e6 {[%clk 0:03:00.1]} 2. d4 {[%clk 0:02:59.7]}
2... d5 {[%clk 0:03:00.7]} 3. e5 {[%clk 0:02:59.7]} 3... c5 {[%clk 0:03:00.5]}
4. c3 {[%clk 0:02:59.8]} 4... Nc6 {[%clk 0:03:00.9]} 5. Nf3 {[%clk 0:03:00.1]}
5... Qb6 {[%clk 0:03:01.1]} 6. Bd3 {[%clk 0:02:59.9]} 6... Nh6 {[%clk
0:03:00.6]} 7. dxc5 {[%clk 0:02:38.2]} 7... Bxc5 {[%clk 0:02:58.1]} 8. O-O
{[%clk 0:02:38.2]} 8... Ng4 {[%clk 0:02:45.9]} 9. Qe2 {[%clk 0:02:37.1]} 9... f6
{[%clk 0:02:29.6]} 10. exf6 {[%clk 0:02:27.6]} 10... Nxf6 {[%clk 0:02:30.5]} 11.
b4 {[%clk 0:02:25.5]} 11... Bd6 {[%clk 0:02:25.9]} 12. a3 {[%clk 0:01:58.7]}
12... O-O {[%clk 0:02:16.4]} 13. Be3 {[%clk 0:01:49.1]} 13... Qc7 {[%clk
0:02:09.6]} 14. c4 {[%clk 0:01:46.7]} 14... dxc4 {[%clk 0:01:52.6]} 15. Bxc4
{[%clk 0:01:46.4]} 15... Bd7 {[%clk 0:01:35.2]} 16. Nc3 {[%clk 0:01:45.2]} 16...
Ne5 {[%clk 0:01:30.3]} 17. Nxe5 {[%clk 0:01:40.7]} 17... Bxe5 {[%clk 0:01:30.4]}
18. Rac1 {[%clk 0:01:40.8]} 18... Bxh2+ {[%clk 0:01:21.9]} 19. Kh1 {[%clk
0:01:40.8]} 19... Bd6 {[%clk 0:01:07]} 20. Nb5 {[%clk 0:01:37.4]} 20... Bxb5
{[%clk 0:01:04.1]} 21. Bxe6+ {[%clk 0:01:27.8]} 21... Kh8 {[%clk 0:00:58.5]} 22.
Qxb5 {[%clk 0:01:27.9]} 22... Qe7 {[%clk 0:00:55.4]} 23. Bh3 {[%clk 0:01:13.8]}
23... Ne4 {[%clk 0:00:24.6]} 24. Rce1 {[%clk 0:01:00.3]} 24... Qh4 {[%clk
0:00:20.4]} 25. Qxb7 {[%clk 0:00:47.8]} 25... Nxf2+ {[%clk 0:00:19.7]} 26. Bxf2
{[%clk 0:00:43.1]} 26... Qf4 {[%clk 0:00:18.9]} 27. Bg1 {[%clk 0:00:41.2]} 27...
Qh4 {[%clk 0:00:15.2]} 28. Rxf8+ {[%clk 0:00:32.4]} 28... Rxf8 {[%clk
0:00:16.1]} 29. Qe4 {[%clk 0:00:28.4]} 29... Qg3 {[%clk 0:00:10.9]} 30. Re3
{[%clk 0:00:19.4]} 30... Qg5 {[%clk 0:00:08.1]} 31. Rf3 {[%clk 0:00:17.1]} 31...
Rd8 {[%clk 0:00:06.2]} 32. Qf5 {[%clk 0:00:13.3]} 32... Qe7 {[%clk 0:00:05.4]}
33. Qf7 {[%clk 0:00:12.1]} 33... Qg5 {[%clk 0:00:04.1]} 34. Rf5 {[%clk
0:00:07.5]} 34... Qg3 {[%clk 0:00:03.1]} 35. Qd5 {[%clk 0:00:03.9]} 35... h6
{[%clk 0:00:02.2]} 36. Rf7 {[%clk 0:00:02.8]} 36... Bc7 {[%clk 0:00:01.3]} 37.
Qf5 {[%clk 0:00:01.7]} 1-0

[Event "Early-Titled-Tuesday-Blitz-January-23-2024"]
[Site "Chess.com"]
[Date "2024.01.23"]
[Round "10"]
[White "Sibelephant"]
[Black "Fandorine"]
[Result "1/2-1/2"]
[WhiteElo "3074"]
[BlackElo "2982"]
[TimeControl "180+1"]
[EndTime "9:56:43 PST"]
[Termination "Game drawn by agreement"]

1. d4 {[%clk 0:02:59.3]} 1... Nf6 {[%clk 0:02:59.7]} 2. c4 {[%clk 0:02:59]} 2...
g6 {[%clk 0:03:00.1]} 3. g3 {[%clk 0:02:58.6]} 3... Bg7 {[%clk 0:02:59.5]} 4.
Bg2 {[%clk 0:02:58.6]} 4... O-O {[%clk 0:03:00.4]} 5. Nc3 {[%clk 0:02:58.4]}
5... d6 {[%clk 0:03:00.6]} 6. h3 {[%clk 0:02:58.1]} 6... c5 {[%clk 0:02:51.3]}
7. e3 {[%clk 0:02:57.7]} 7... Nc6 {[%clk 0:02:41.1]} 8. Nge2 {[%clk 0:02:57.7]}
8... Bd7 {[%clk 0:02:37.6]} 9. O-O {[%clk 0:02:57]} 9... a6 {[%clk 0:02:37.7]}
10. b3 {[%clk 0:02:56.6]} 10... cxd4 {[%clk 0:02:13.1]} 11. exd4 {[%clk
0:02:51.9]} 11... b5 {[%clk 0:02:13.1]} 12. cxb5 {[%clk 0:02:36.1]} 12... axb5
{[%clk 0:02:13.2]} 13. Nxb5 {[%clk 0:02:36.4]} 13... Nb4 {[%clk 0:02:13.9]} 14.
Nbc3 {[%clk 0:02:33]} 14... Bc6 {[%clk 0:02:09.5]} 15. Bxc6 {[%clk 0:02:12.7]}
15... Nxc6 {[%clk 0:02:10.4]} 16. Bg5 {[%clk 0:01:58.7]} 16... Qd7 {[%clk
0:02:04.4]} 17. Kh2 {[%clk 0:01:49.2]} 17... Ra5 {[%clk 0:01:58.7]} 18. Qd2
{[%clk 0:01:44.2]} 18... Nd5 {[%clk 0:01:38.1]} 19. Nxd5 {[%clk 0:01:17.4]}
19... Rxd5 {[%clk 0:01:37.6]} 20. Be3 {[%clk 0:01:17.7]} 20... e5 {[%clk
0:01:11]} 21. Nc3 {[%clk 0:00:44]} 21... Nxd4 {[%clk 0:01:10.8]} 22. Qd1 {[%clk
0:00:35.6]} 22... Ra5 {[%clk 0:01:06.9]} 23. a4 {[%clk 0:00:27.4]} 23... h5
{[%clk 0:00:32.7]} 24. b4 {[%clk 0:00:27.2]} 24... Raa8 {[%clk 0:00:32.7]} 25.
Bxd4 {[%clk 0:00:23.6]} 25... exd4 {[%clk 0:00:32.6]} 26. Nd5 {[%clk 0:00:24.3]}
26... Rae8 {[%clk 0:00:28.4]} 27. Qf3 {[%clk 0:00:17.8]} 27... Re5 {[%clk
0:00:23.9]} 28. a5 {[%clk 0:00:18]} 28... Qb5 {[%clk 0:00:10.7]} 29. Nc7 {[%clk
0:00:16.3]} 29... Qxb4 {[%clk 0:00:11.1]} 30. a6 {[%clk 0:00:16.8]} 30... Qb6
{[%clk 0:00:09.6]} 31. Qb7 {[%clk 0:00:13.2]} 31... Qxb7 {[%clk 0:00:02.9]} 32.
axb7 {[%clk 0:00:13.6]} 32... Re7 {[%clk 0:00:03.8]} 33. Rfc1 {[%clk 0:00:11.3]}
33... d3 {[%clk 0:00:04.5]} 34. Ra8 {[%clk 0:00:10.8]} 34... d2 {[%clk
0:00:05.2]} 35. Rxf8+ {[%clk 0:00:10.7]} 35... Bxf8 {[%clk 0:00:06.1]} 36. Rd1
{[%clk 0:00:10.6]} 36... Re1 {[%clk 0:00:02.9]} 37. Rxd2 {[%clk 0:00:04.5]}
37... Rb1 {[%clk 0:00:02.9]} 38. Nd5 {[%clk 0:00:04.5]} 38... Rxb7 {[%clk
0:00:03.3]} 39. Nf6+ {[%clk 0:00:05]} 39... Kg7 {[%clk 0:00:03.6]} 40. Ne8+
{[%clk 0:00:05.4]} 40... Kg8 {[%clk 0:00:04.2]} 41. Nxd6 {[%clk 0:00:06]} 41...
Bxd6 {[%clk 0:00:03.6]} 42. Rxd6 {[%clk 0:00:06.9]} 42... Kg7 {[%clk 0:00:04.3]}
43. h4 {[%clk 0:00:07]} 43... Ra7 {[%clk 0:00:04.6]} 1/2-1/2

[Event "Early-Titled-Tuesday-Blitz-January-23-2024"]
[Site "Chess.com"]
[Date "2024.01.23"]
[Round "10"]
[White "ProChessWICTH"]
[Black "jk13"]
[Result "0-1"]
[WhiteElo "2523"]
[BlackElo "2643"]
[TimeControl "180+1"]
[EndTime "9:56:45 PST"]
[Termination "jk13 won by resignation"]

1. e4 {[%clk 0:03:00.9]} 1... e5 {[%clk 0:02:59.7]} 2. Nf3 {[%clk 0:03:01.2]}
2... Nc6 {[%clk 0:03:00.4]} 3. d4 {[%clk 0:03:01.9]} 3... exd4 {[%clk
0:03:00.4]} 4. Bc4 {[%clk 0:03:02.6]} 4... Nf6 {[%clk 0:03:00.1]} 5. e5 {[%clk
0:03:03.1]} 5... d5 {[%clk 0:03:00.1]} 6. Bb5 {[%clk 0:03:03.7]} 6... Ne4 {[%clk
0:03:00.8]} 7. Nxd4 {[%clk 0:03:04]} 7... Bd7 {[%clk 0:03:01.4]} 8. Bxc6 {[%clk
0:03:04.2]} 8... bxc6 {[%clk 0:03:00.9]} 9. O-O {[%clk 0:03:04.8]} 9... Bc5
{[%clk 0:03:01.3]} 10. Be3 {[%clk 0:03:03]} 10... Bb6 {[%clk 0:02:59.2]} 11. f3
{[%clk 0:03:01.5]} 11... Ng5 {[%clk 0:02:59.3]} 12. f4 {[%clk 0:03:00.9]} 12...
Ne4 {[%clk 0:02:59.9]} 13. Nd2 {[%clk 0:02:59.6]} 13... Nxd2 {[%clk 0:03:00.5]}
14. Qxd2 {[%clk 0:03:00.5]} 14... c5 {[%clk 0:03:00.9]} 15. Nf3 {[%clk
0:02:59.7]} 15... d4 {[%clk 0:03:01.8]} 16. Bf2 {[%clk 0:03:00.2]} 16... O-O
{[%clk 0:02:58]} 17. Rfe1 {[%clk 0:02:56.4]} 17... Bc6 {[%clk 0:02:50.3]} 18.
Qd3 {[%clk 0:02:52.8]} 18... Qd5 {[%clk 0:02:41.7]} 19. c4 {[%clk 0:02:41.5]}
19... dxc3 {[%clk 0:01:52.1]} 20. Qxc3 {[%clk 0:02:40]} 20... Rad8 {[%clk
0:01:41.9]} 21. h3 {[%clk 0:02:26.4]} 21... c4 {[%clk 0:01:30.1]} 22. Bxb6
{[%clk 0:02:10.7]} 22... cxb6 {[%clk 0:01:28.1]} 23. f5 {[%clk 0:02:08.6]} 23...
Qc5+ {[%clk 0:01:24.1]} 24. Qe3 {[%clk 0:01:46]} 24... Qxe3+ {[%clk 0:01:11.2]}
25. Rxe3 {[%clk 0:01:46.9]} 25... Rfe8 {[%clk 0:00:59.7]} 26. Rae1 {[%clk
0:01:08.6]} 26... Kf8 {[%clk 0:00:58.6]} 27. Rc3 {[%clk 0:00:58.6]} 27... b5
{[%clk 0:00:54.9]} 28. b3 {[%clk 0:00:56.7]} 28... Bd5 {[%clk 0:00:47.7]} 29.
bxc4 {[%clk 0:00:47.5]} 29... Bxc4 {[%clk 0:00:48]} 30. a4 {[%clk 0:00:47.3]}
30... a6 {[%clk 0:00:47.4]} 31. a5 {[%clk 0:00:45.3]} 31... Rd5 {[%clk 0:00:42]}
32. Kf2 {[%clk 0:00:45.3]} 32... f6 {[%clk 0:00:40.2]} 33. exf6 {[%clk
0:00:32.9]} 33... gxf6 {[%clk 0:00:41.1]} 34. g4 {[%clk 0:00:26.7]} 34... Rxe1
{[%clk 0:00:39.8]} 35. Kxe1 {[%clk 0:00:26.7]} 35... Ke7 {[%clk 0:00:29.1]} 36.
Kf2 {[%clk 0:00:26.7]} 36... Rd1 {[%clk 0:00:26]} 37. h4 {[%clk 0:00:20.9]}
37... h6 {[%clk 0:00:22.6]} 38. Re3+ {[%clk 0:00:20.3]} 38... Kd6 {[%clk
0:00:22.1]} 39. Re8 {[%clk 0:00:19.4]} 39... Kc5 {[%clk 0:00:17.5]} 40. Rf8
{[%clk 0:00:17.9]} 40... b4 {[%clk 0:00:16]} 41. Rxf6 {[%clk 0:00:14.9]} 41...
b3 {[%clk 0:00:16.3]} 42. Rb6 {[%clk 0:00:12.9]} 42... Bb5 {[%clk 0:00:15.6]}
43. f6 {[%clk 0:00:07.4]} 43... b2 {[%clk 0:00:11.2]} 44. f7 {[%clk 0:00:07.4]}
44... Rd8 {[%clk 0:00:11.9]} 45. Nd2 {[%clk 0:00:03.6]} 45... Rxd2+ {[%clk
0:00:11.6]} 46. Ke3 {[%clk 0:00:03]} 46... Rd8 {[%clk 0:00:12.5]} 47. g5 {[%clk
0:00:02.4]} 47... hxg5 {[%clk 0:00:12]} 48. hxg5 {[%clk 0:00:03.3]} 48... b1=Q
{[%clk 0:00:12.5]} 0-1

[Event "Early-Titled-Tuesday-Blitz-January-23-2024"]
[Site "Chess.com"]
[Date "2024.01.23"]
[Round "10"]
[White "Al_Shima"]
[Black "Huragan007"]
[Result "1/2-1/2"]
[WhiteElo "2304"]
[BlackElo "2553"]
[TimeControl "180+1"]
[EndTime "9:56:47 PST"]
[Termination "Game drawn by repetition"]

1. d4 {[%clk 0:02:30.4]} 1... Nf6 {[%clk 0:02:59.8]} 2. Nc3 {[%clk 0:02:29.9]}
2... g6 {[%clk 0:02:59.9]} 3. e4 {[%clk 0:02:29.5]} 3... d6 {[%clk 0:03:00.4]}
4. Bg5 {[%clk 0:02:29.9]} 4... Bg7 {[%clk 0:03:00.7]} 5. e5 {[%clk 0:02:30.1]}
5... dxe5 {[%clk 0:02:58.2]} 6. dxe5 {[%clk 0:02:31]} 6... Qxd1+ {[%clk
0:02:56.2]} 7. Rxd1 {[%clk 0:02:31.9]} 7... Nfd7 {[%clk 0:02:52.7]} 8. f4 {[%clk
0:02:32]} 8... c6 {[%clk 0:02:49.5]} 9. Nf3 {[%clk 0:02:31.9]} 9... h6 {[%clk
0:02:43.6]} 10. Bh4 {[%clk 0:02:31]} 10... g5 {[%clk 0:02:44]} 11. fxg5 {[%clk
0:02:31.1]} 11... Nxe5 {[%clk 0:02:43.9]} 12. Be2 {[%clk 0:02:22.8]} 12... hxg5
{[%clk 0:02:32.9]} 13. Bxg5 {[%clk 0:02:23.7]} 13... Bf5 {[%clk 0:02:25.6]} 14.
Rd2 {[%clk 0:02:08.6]} 14... Nbd7 {[%clk 0:02:17.9]} 15. O-O {[%clk 0:02:08.4]}
15... Bg6 {[%clk 0:02:10.7]} 16. Re1 {[%clk 0:01:33]} 16... Nc5 {[%clk
0:02:05.7]} 17. h3 {[%clk 0:01:23.5]} 17... Ne6 {[%clk 0:02:05.7]} 18. Be3
{[%clk 0:01:19.5]} 18... O-O {[%clk 0:02:03.2]} 19. Nxe5 {[%clk 0:01:15.2]}
19... Bxe5 {[%clk 0:02:03]} 20. Bc4 {[%clk 0:01:16.1]} 20... Bd6 {[%clk
0:01:45.5]} 21. Bh6 {[%clk 0:01:13.5]} 21... Ng7 {[%clk 0:01:42.7]} 22. Ne4
{[%clk 0:01:09.3]} 22... Rfd8 {[%clk 0:01:27.6]} 23. Nxd6 {[%clk 0:01:01.4]}
23... exd6 {[%clk 0:01:26.6]} 24. Rde2 {[%clk 0:00:42]} 24... d5 {[%clk
0:01:23.7]} 25. Bb3 {[%clk 0:00:40.9]} 25... Nf5 {[%clk 0:01:16.3]} 26. Bg5
{[%clk 0:00:36.9]} 26... Rd6 {[%clk 0:01:04.4]} 27. c3 {[%clk 0:00:36.8]} 27...
Kg7 {[%clk 0:00:58.2]} 28. Bf4 {[%clk 0:00:31.2]} 28... Rd7 {[%clk 0:00:56.7]}
29. Bg5 {[%clk 0:00:29.2]} 29... f6 {[%clk 0:00:44.2]} 30. Bf4 {[%clk
0:00:24.8]} 30... Kf7 {[%clk 0:00:44.6]} 31. Rf2 {[%clk 0:00:11.1]} 31... Rg8
{[%clk 0:00:42.9]} 32. Kh2 {[%clk 0:00:08.3]} 32... Nd6 {[%clk 0:00:40.7]} 33.
Bxd6 {[%clk 0:00:05.5]} 33... Rxd6 {[%clk 0:00:41.4]} 34. Bc2 {[%clk 0:00:05.1]}
34... Bxc2 {[%clk 0:00:37.1]} 35. Rxc2 {[%clk 0:00:06]} 35... Re6 {[%clk
0:00:36]} 36. Rxe6 {[%clk 0:00:05.7]} 36... Kxe6 {[%clk 0:00:36.9]} 37. Re2+
{[%clk 0:00:06.5]} 37... Kf7 {[%clk 0:00:37.5]} 38. g4 {[%clk 0:00:06.6]} 38...
c5 {[%clk 0:00:34.7]} 39. Kg3 {[%clk 0:00:06.7]} 39... d4 {[%clk 0:00:32.7]} 40.
cxd4 {[%clk 0:00:04.6]} 40... cxd4 {[%clk 0:00:33.6]} 41. Kf4 {[%clk 0:00:04.4]}
41... Rh8 {[%clk 0:00:30.8]} 42. Rh2 {[%clk 0:00:04.2]} 42... Re8 {[%clk
0:00:30.3]} 43. Rd2 {[%clk 0:00:03.1]} 43... Rh8 {[%clk 0:00:30.3]} 44. Rxd4
{[%clk 0:00:03.4]} 44... Rxh3 {[%clk 0:00:30.5]} 45. Rd7+ {[%clk 0:00:04.1]}
45... Ke6 {[%clk 0:00:30.7]} 46. Rxb7 {[%clk 0:00:05]} 46... Rh2 {[%clk
0:00:29.7]} 47. Rxa7 {[%clk 0:00:03.2]} 47... Rxb2 {[%clk 0:00:29.9]} 48. Ra6+
{[%clk 0:00:03.7]} 48... Kf7 {[%clk 0:00:29.6]} 49. a4 {[%clk 0:00:02.7]} 49...
Rb4+ {[%clk 0:00:28.9]} 50. Kf5 {[%clk 0:00:03.3]} 50... Kg7 {[%clk 0:00:28]}
51. Ra7+ {[%clk 0:00:01.8]} 51... Kh6 {[%clk 0:00:27.6]} 52. Ra6 {[%clk
0:00:02.4]} 52... Kg7 {[%clk 0:00:27.2]} 53. Ra7+ {[%clk 0:00:02.2]} 53... Kh6
{[%clk 0:00:27.3]} 54. Ra6 {[%clk 0:00:02.4]} 54... Kg7 {[%clk 0:00:27.6]}
1/2-1/2

[Event "Early-Titled-Tuesday-Blitz-January-23-2024"]
[Site "Chess.com"]
[Date "2024.01.23"]
[Round "10"]
[White "Goryachkina"]
[Black "tusplingher"]
[Result "1/2-1/2"]
[WhiteElo "2697"]
[BlackElo "2518"]
[TimeControl "180+1"]
[EndTime "9:56:49 PST"]
[Termination "Game drawn by repetition"]

1. e4 {[%clk 0:03:00.3]} 1... c5 {[%clk 0:02:58.5]} 2. Nf3 {[%clk 0:03:00.6]}
2... d6 {[%clk 0:02:57.7]} 3. d4 {[%clk 0:03:00.6]} 3... Nf6 {[%clk 0:02:55.5]}
4. Nc3 {[%clk 0:03:00.5]} 4... cxd4 {[%clk 0:02:55.1]} 5. Nxd4 {[%clk
0:03:00.8]} 5... a6 {[%clk 0:02:54.6]} 6. Be2 {[%clk 0:03:00.3]} 6... e5 {[%clk
0:02:39.1]} 7. Nf3 {[%clk 0:03:00.3]} 7... Be7 {[%clk 0:02:38.3]} 8. a4 {[%clk
0:02:58.7]} 8... O-O {[%clk 0:02:35.7]} 9. O-O {[%clk 0:02:58.9]} 9... h6 {[%clk
0:02:22.8]} 10. Re1 {[%clk 0:02:53.1]} 10... Be6 {[%clk 0:02:21.5]} 11. Bf1
{[%clk 0:02:52.4]} 11... Nbd7 {[%clk 0:02:18.1]} 12. Nd2 {[%clk 0:02:49.1]}
12... Rc8 {[%clk 0:02:14]} 13. a5 {[%clk 0:02:47.8]} 13... d5 {[%clk 0:01:53.2]}
14. exd5 {[%clk 0:02:39.9]} 14... Nxd5 {[%clk 0:01:53.1]} 15. Nxd5 {[%clk
0:02:39.9]} 15... Bxd5 {[%clk 0:01:53.5]} 16. Nf3 {[%clk 0:02:37.8]} 16... Be6
{[%clk 0:01:42.9]} 17. Be3 {[%clk 0:02:28.6]} 17... Bf6 {[%clk 0:01:39.2]} 18.
c3 {[%clk 0:02:27.2]} 18... Qc7 {[%clk 0:01:34.7]} 19. Nd2 {[%clk 0:02:20.8]}
19... Rfd8 {[%clk 0:01:30.5]} 20. Qc2 {[%clk 0:02:18.3]} 20... Qc6 {[%clk
0:01:15.3]} 21. Bd3 {[%clk 0:02:09.3]} 21... Nc5 {[%clk 0:01:08.7]} 22. Bxc5
{[%clk 0:02:01]} 22... Qxc5 {[%clk 0:01:07]} 23. Ne4 {[%clk 0:02:01.1]} 23...
Qe7 {[%clk 0:01:03.5]} 24. Nxf6+ {[%clk 0:01:59.4]} 24... Qxf6 {[%clk
0:01:03.6]} 25. Be4 {[%clk 0:01:59.3]} 25... Bd5 {[%clk 0:01:00.7]} 26. Rad1
{[%clk 0:01:59.1]} 26... Qc6 {[%clk 0:00:56]} 27. Bh7+ {[%clk 0:01:27.8]} 27...
Kh8 {[%clk 0:00:54]} 28. Bf5 {[%clk 0:01:27.5]} 28... Rb8 {[%clk 0:00:46.1]} 29.
f3 {[%clk 0:01:20.2]} 29... f6 {[%clk 0:00:44.3]} 30. Qf2 {[%clk 0:01:02.4]}
30... Bb3 {[%clk 0:00:40.8]} 31. Rxd8+ {[%clk 0:01:00.9]} 31... Rxd8 {[%clk
0:00:41.7]} 32. Be4 {[%clk 0:01:01.1]} 32... Bd5 {[%clk 0:00:40.2]} 33. Rd1
{[%clk 0:00:58]} 33... Rd7 {[%clk 0:00:39.1]} 34. Bxd5 {[%clk 0:00:17.1]} 34...
Rxd5 {[%clk 0:00:38.9]} 35. Rxd5 {[%clk 0:00:17.4]} 35... Qxd5 {[%clk
0:00:39.2]} 36. b4 {[%clk 0:00:14.1]} 36... Qd1+ {[%clk 0:00:35.8]} 37. Qf1
{[%clk 0:00:14.2]} 37... Qd2 {[%clk 0:00:35.1]} 38. Qa1 {[%clk 0:00:13.2]} 38...
f5 {[%clk 0:00:31.1]} 39. Kf1 {[%clk 0:00:12.9]} 39... e4 {[%clk 0:00:30.1]} 40.
fxe4 {[%clk 0:00:13.2]} 40... fxe4 {[%clk 0:00:29.6]} 41. Qe1 {[%clk 0:00:13.2]}
41... Qd3+ {[%clk 0:00:27.9]} 42. Kf2 {[%clk 0:00:12.9]} 42... Qc2+ {[%clk
0:00:26.9]} 43. Ke3 {[%clk 0:00:11.9]} 43... Qxg2 {[%clk 0:00:25.2]} 44. Kd4
{[%clk 0:00:10.3]} 44... Qxh2 {[%clk 0:00:20.5]} 45. Qxe4 {[%clk 0:00:10.2]}
45... Qd6+ {[%clk 0:00:18.3]} 46. Ke3 {[%clk 0:00:07.8]} 46... Qc7 {[%clk
0:00:17.1]} 47. Qe8+ {[%clk 0:00:07.3]} 47... Kh7 {[%clk 0:00:16.3]} 48. Qe4+
{[%clk 0:00:07.6]} 48... Kh8 {[%clk 0:00:16.1]} 49. Qe8+ {[%clk 0:00:07.6]}
49... Kh7 {[%clk 0:00:16.5]} 50. Qe4+ {[%clk 0:00:08.4]} 50... Kh8 {[%clk
0:00:17]} 1/2-1/2